Workbook

Sheet Revision History
A1: Revision History
A2: Date | B2: Version | C2: Description | D2: Author
A3: 2015-12-18 | B3: 1 | C3: Initial Publication | D3: Henry Lum
A4: 2016-03-16 | B4: 2.0 | C4: Update to include performance data for voice/screen decryption through GWS | D4: Henry Lum
A5: 2016-06-29 | B5: 3.0 | C5: Update to account for RWS sizing after Jetty change. | D5: Henry Lum
A6: 2016-07-15 | B6: 3.1 | C6: Update RP sizing to account for Interaction Receiver improvements; added instructions | D6: Henry Lum
A7: 2016-12-02 | B7: 3.2 | C7: Fix GIR-8924 | D7: Henry Lum
A8: 2017-03-24 | B8: 3.3 | C8: Added info about IVR Recording | D8: Alex Lee
A9: 2018-02-09 | B9: 3.4 | C9: Updated SpeechMiner tab with new results and new CPU models | D9: David Konig
A10: 2018-02-09 | B10: 3.5 | C10: Changed all "HTCC" to "RWS" to reflect product name change | D10: Alex Lee
A11: 2018-06-06 | B11: 3.6 | C11: Updated SpeechMiner tab when using new Elasticsearch for its index | D11: Alex Lee
A12: 2018-06-29 | B12: 3.7 | C12: Fix GIR-20849 | D12: Sathya Narayanan
A13: 2018-08-03 | B13: 3.8 | C13: Fix GIR-21167, GIR-21815 | D13: Alex Lee
A14: 2018-09-20 | B14: 4 | C14: Fix GIR-22739 | D14: Alex Lee
A15: 2019-01-02 | B15: 4.1 | C15: Provide sizing info for Muxer and Voice Processor. Fix GIR-21938, GIR-23771, GIR-22923, 22739 | D15: Alex Lee
A16: 2019-04-01 | B16: 4.2 | C16: Updated maximum number of documents supported in Elasticsearch | D16: Jamie Murison
A17: 2019-04-08 | B17: 4.3 | C17: Updated SpeechMiner Elasticsearch content; separated RWS Elasticsearch from RWS as separate pages | D17: Jamie Murison
A18: 2019-10-16 | B18: 4.4 | C18: Fixed Output Summary "Screen size required per day (GB)"; adjusted ES disk usage to reflect V2 schema; added CPU information used for testing | D18: Jamie Murison
A19: 2020-04-06 | B19: 4.5 | C19: Clarified that Speechminer Elasticsearch Data nodes must use SSD storage | D19: Jamie Murison
A20: 2022-01-25 | B20: 4.6 | C20: Added an important note on the Cassandra tab. | D20: Dmitriy Vakulenko / Marudhu Pandian

Sheet Version Changes
A1: Version Changes | B1: Version #
B2: 8.5.208.01 | C2: 8.5.210.01 | D2: 8.5.211.01 | E2: 8.5.211.02 | F2: 8.5.212.03
A3: Components
A4: MCP | B4: x | F4: x
A5: ICON | B5: x
A6: Recording Processor | B6: x | D6: x | E6: x
A7: Recording Crypto Server | B7: x | C7: x
A8: RWS (formerly known as HTCC) | B8: x | C8: x | E8: x
A9: SpeechMiner | B9: x
A10: Storage Sizing
A11: Voice Recording Storage and Network Bandwidth | B11: x
A12: Screen Recording Storage and Network Bandwidth | B12: x
A13: 3rd Party Software
A14: Cassandra | B14: x
A15: WebDAV (httpd) | B15: x

Sheet Deployment input
A1: Instructions
A2: Fill in all fields with orange or red. Use the default value if you are not sure what to enter. If you see a green checkmark next to "All inputs entered?" then the deployment input is complete. Incomplete fields are marked as red. The sizing output is in "Output Summary" view.
A5: Total agents
A7: Voice Agents | D7: IVR
A8: Concurrent agents being recorded | D8: Total IVR Ports | E8: =E12+E13 -> 0
A9: Percentage of calls recorded | B9: 100% | D9: IVR average duration | E9: 0
A10: Busy hour agent interaction | B10: 80% | D10: Busy hour calls | E10: =IF(E9>0,E8*3600/E9,0) -> 0
A11: Busy hour calls | B11: =B8*B10*3600/B15*B9 -> 0 | D11: Recordings per day | E11: 0
A12: Recordings per day | D12: IVR Ports recorded using agent recording method with SIP Server DN configuration | E12: 0
A13: Peak interaction factor | B13: 1.0 | D13: IVR Ports recorded using VXML application-level control | E13: 0
A14: Call attempts per second (Voice) | B14: =(1+B16+B17)*B11*B13/3600 -> 0.00 | D14: Number of MCP servers provisioned for IVR, based on GVP Sizing | E14: 0 | F14: =IF(OR(AND(E14=0, E16<>0), AND(E14<>0,E16=0)),1,0) -> 0
A15: Average talk time (seconds) | B15: 240
A16: Percentage of calls with call transfers (same site) | B16: 10% | D16: Call attempts per second (IVR) | E16: =E10/3600 -> 0.00
A17: Percentage of calls with call transfers (different site) | B17: 0%
A19: Voice Recording
A20: Total busy hour calls (voice + IVR) | B20: =B11+E10 -> 0 | D20: System Inputs
A21: Total CAPS | B21: =B14+E16 -> 0.00 | D21: Network interface speed (Mbps) | E21: 1000
A22: Voice retention period (days) | B22: 360 | D22: Disk IOPS provisioned for each server | E22: 150
A23: Number of attached data per call | B23: 40
A24: Concurrent Recording UI users for playback | B24: 50 | D24: MCP Sizing Input
A25: Concurrent API users for playback | B25: 0 | D25: Recording bitrate | E25: 16kbps mp3 (stereo)
D26: Encryption? | E26: Encryption enabled
A27: Screen Recording for Voice Agents | D27: GIR or GIR+GIA? | E27: GIR
A28: Percentage of screen recorded for voice interactions | B28: 20% | D28: Operating System | E28: Windows 2008 R2
A29: Screen recording upload CAPS | B29: =B14*B28 -> 0.00 | D29: CPU cores per VM (up to 8) | E29: 8
A30: Average duration of after call work (s) | B30: 0
A32: Screen Recording for Non-Voice only Agents | D32: All inputs entered? | E32: =SUM(COUNTBLANK(B5),COUNTBLANK(B8:B17),COUNTBLANK(B20:B25),COUNTBLANK(B28:B30),COUNTBLANK(B33:B35),COUNTBLANK(B38:B41),COUNTBLANK(E8:E11),COUNTBLANK(E16),COUNTBLANK(E21:E22),COUNTBLANK(B44:B44)) -> 3
A33: Non-voice agents | B33: 0
A34: Average hours recorded per agent per day | B34: 0
A35: Average file duration (minutes) | B35: 0
A37: Screen Recording
A38: Video quality | B38: low (color)
A39: Upload window (hours per day; zero for immediate) | B39: 0
A40: Video retention period (days) | B40: 90
A41: Concurrent SpeechMiner users for screen playback | B41: 50
A43: Speechminer Elasticsearch
A44: Number of replicas configured in Elasticsearch | B44: 1
A46: Metadata Processing
A47: Component used for Metadata Processing | B47: Classic Recording Processor

Sheet Output Summary
A1: All inputs entered? | B1: ='Deployment input'!E32 -> 3
A2: Total number of ES document | B2: ='Deployment input'!B12*'Deployment input'!B22*('Deployment input'!B23+1) -> 0
A3: Is the sizing within the size limit of this spreadsheet? | B3: =IF(B2<24000000000,1,0) -> 1 | C3: Note: This sizing spreadsheet should only be used when the total number of Elasticsearch documents are within 24 billion records. Please contact GIR Engineering team if the number of ES documents exceeds this number
A5: Voice Recording Storage
A6: Voice size required per day (GB) | B6: ='Voice recording storage'!B20 -> 0
A7: Voice size required for retention (GB) | B7: ='Voice recording storage'!B21 -> 0 | C7: =CONCATENATE(CEILING(B7/1024, 1), " TB") -> 0 TB
A9: Screen Recording Storage
A10: Screen size required per day (GB) | B10: ='Screen recording storage'!B38 -> 0
A11: Screen size required for retention (GB) | B11: ='Screen recording storage'!B39 -> 0 | C11: =CONCATENATE(CEILING(B11/1024, 1), " TB") -> 0 TB
A13: Screen recording client upload bandwidth (Mbps) | B13: ='Screen recording storage'!B46 -> 0
A16: Component sizing output | B16: CPU | C16: Memory (MB) | D16: IOPS | E16: Disk space (GB) | F16: Network bandwidth (Mbps) | G16: # of instances required | H16: Servers needed | I16: Cores per VM
A17: Classic RP (per instance) | B17: =RP!B19 -> 24% | C17: =RP!C19 -> 50 | D17: =RP!B6 -> 60 | G17: =RP!E19 -> 0
A18: Docker Voice Processor (per instance) | B18: ='Voice Processor'!B15 -> 0% | C18: ='Voice Processor'!C15 -> 0 | D18: n/a | E18: n/a | F18: negligible | G18: ='Voice Processor'!D15 -> 0 | H18: ='Voice Processor'!D15 -> 0 | I18: =CEILING(RP!B19,1) -> 1
A19: Muxer | B19: =Muxer!B11 -> 150% | C19: =Muxer!C11 -> 2048 | D19: =Muxer!D11 -> 200 | E19: =Muxer!E11 -> 120 | F19: =Muxer!F11 -> 0 | G19: =Muxer!G11 -> 0 | I19: 2
A20: RCS (per instance) | B20: =RCS!B21 -> 6% | C20: =RCS!C21 -> 600 | E20: 120 | F20: =RCS!D21 -> 7.32421875
A21: RWS (per instance) | B21: =RWS!D57 -> 2% | C21: =RWS!B6*1024 -> 8192 | E21: 120 | F21: ='Screen recording storage'!B46*2/3 -> 0 | G21: 3 | I21: =RWS!B5 -> 4
A22: Elasticsearch (per instance) | C22: =Elasticsearch!B6*1024 -> 16384 | E22: =Elasticsearch!B27 -> 0 | G22: 3 | I22: =Elasticsearch!B5 -> 4
A23: Cassandra (per instance) | B23: =Cassandra!B29 -> 0% | C23: =Cassandra!C29 -> 2076 | D23: =Cassandra!D29 -> 8 | E23: =Cassandra!E29 -> 0 | G23: 3
A24: MCP for agent-like recording (per server) | D24: =MCP!B28 -> 59 | F24: =MCP!B29+'Voice recording storage'!B27 -> 77 | H24: =MCP!B27 -> 0 | I24: ='Deployment input'!E29 -> 8
A25: Additional MCPs for IVR recording (per server). This is in addition to the MCPs already provisioned from GVP sizing as needed for IVR purposes | D25: =MCP!B38 -> 269 | F25: =MCP!B39+'Voice recording storage'!B27 -> 385 | H25: =MCP!B36 -> 0 | I25: ='Deployment input'!E29 -> 8
A26: Apache httpd WebDAV | B26: =WebDAV!B16 -> 0% | D26: =WebDAV!C16 -> 0 | E26: refer to recording storage | F26: ='Screen recording storage'!B47+'Voice recording storage'!B27 -> 0
A29: SpeechMiner Server Recommendations for GIR | B29: CPU | C29: RAM | D29: Disk space (GB) | E29: Servers needed
A30: UPlatform (Scheduler) | B30: =SpeechMiner!B20 -> Dual 8-Core Xeon Silver 4110 2.1GHz | C30: =SpeechMiner!C20 -> 16GB | D30: 160 | E30: 2
A31: Interaction Receiver | B31: =SpeechMiner!B21 -> Dual 8-Core Xeon Silver 4110 2.1GHz | C31: =SpeechMiner!C21 -> 16GB | D31: 160 | E31: =SpeechMiner!B44 -> 0
A32: Web | B32: =SpeechMiner!B21 -> Dual 8-Core Xeon Silver 4110 2.1GHz | C32: =SpeechMiner!C21 -> 16GB | D32: 160 | E32: =SpeechMiner!B43 -> 1
A33: Database | B33: =SpeechMiner!B41 -> Dual 8-Core Xeon Silver 4110 2.1GHz | C33: =SpeechMiner!C41 -> 16GB | D33: =160+SpeechMiner!B17+SpeechMiner!C17+SpeechMiner!D17 -> 177.5 | E33: 1
A34: Elasticsearch Master nodes | B34: =SpeechMiner!B28 -> 4-Core Xeon Silver 4112 2.6 GHz | C34: =SpeechMiner!C28 -> 8GB | D34: 160 | E34: =SpeechMiner!B45 -> 3 | F34: NOTE: Elasticsearch Data nodes must use SSD storage. In cases where there are less than 5 Elasticsearch Data nodes, you can put the Master nodes and the Data nodes on the same machine. E.g. if you need 2 Data nodes, then you need two Data node machines and one Master node machine.
A35: Elasticsearch Data nodes | B35: =SpeechMiner!B29 -> Dual 8-Core Xeon Silver 4110 2.1 GHz | C35: =SpeechMiner!C29 -> 64GB | D35: =160+SpeechMiner!B48 -> 160 | E35: =SpeechMiner!B46 -> 2
A36: Indexer | B36: =SpeechMiner!B27 -> 4-Core Xeon Silver 4112 2.6 GHz | C36: =SpeechMiner!C27 -> 8GB | D36: 160 | E36: 2

Sheet Voice recording storage
A1: Audio Quality
A2: 16kbps mp3 (stereo) | B2: 16
A3: 8kbps mp3 (mono) | B3: 8
A5: mp3 bitrate for calculation | B5: =IF('Deployment input'!E25='Voice recording storage'!A2,'Voice recording storage'!B2,'Voice recording storage'!B3) -> 16
A7: Voice Agents
A8: Calls per day | B8: ='Deployment input'!B12 -> 0
A9: Average voice file length (s) | B9: ='Deployment input'!B15 -> 240
A10: Average voice file size (KB) | B10: =B9*B5/8 -> 480
A11: Recording size per day (MB) | B11: =$B$8*$B$9*$B$5/8/1024 -> 0 | C11: =CONCATENATE(CEILING(B11/1024, 1), " GB") -> 0 GB
A13: IVR
A14: Calls per day | B14: ='Deployment input'!E11 -> 0
A15: Average file length (s) | B15: ='Deployment input'!E9 -> 0
A16: Recording size per day (MB) | B16: =B14*B15*B5/8/1024 -> 0 | C16: =CONCATENATE(CEILING(B16/1024, 1), " GB") -> 0 GB
A18: Output
A19: Voice retention period (days) | B19: ='Deployment input'!B22 -> 360
A20: Total size required per day (GB) | B20: =(B11+B16)/1024 -> 0
A21: Total size required for retention (GB) | B21: =(B11+B16)/1024*B19 -> 0 | C21: =CONCATENATE(CEILING(B21/1024, 1), " TB") -> 0 TB
A23: Network Bandwidth Requirement
A24: Busy Hour agent calls | B24: ='Deployment input'!B11 -> 0
A25: Busy Hour IVR calls | B25: ='Deployment input'!E10 -> 0
A26: Busy hour total recording size (MB) | B26: =B24*B9*B5/8/1024 + B25*B15*B5/8/1024 -> 0
A27: MCP to WebDAV (Mbps) | B27: =B26/3600*8 -> 0

Sheet Screen recording storage
A1: Video Quality | B1: Kbps | C1: KB/minute | D1: KB/Min with voice
A2: off | B2: 0 | C2: 0 | D2: 0
A3: low (grayscale) | B3: 83 | C3: =B3/8*60 -> 622.5 | D3: =C3+'Voice recording storage'!$B$5/8*60 -> 742.5
A4: standard (grayscale) | B4: 100 | C4: 750 | D4: =C4+'Voice recording storage'!$B$5/8*60 -> 870
A5: high (grayscale) | B5: 121 | C5: 907.5 | D5: =C5+'Voice recording storage'!$B$5/8*60 -> 1027.5
A6: low (color) | B6: 118 | C6: 885 | D6: =C6+'Voice recording storage'!$B$5/8*60 -> 1005
A7: standard (color) | B7: 144 | C7: 1080 | D7: =C7+'Voice recording storage'!$B$5/8*60 -> 1200
A8: high (color) | B8: 187 | C8: 1402.5 | D8: =C8+'Voice recording storage'!$B$5/8*60 -> 1522.5
A10: Screen Recording for Voice
A11: bitrate for this deployment | B11: =VLOOKUP('Deployment input'!B38,A2:B8,2,FALSE) -> 118
A12: Recording size KB/minute | B12: =VLOOKUP('Deployment input'!B38,A2:D8,4,FALSE) -> 1005
A13: Busy hour agent calls | B13: ='Deployment input'!B11 -> 0
A14: Number of agents | B14: ='Deployment input'!B8 -> 0
A15: Number of calls per day | B15: ='Deployment input'!B12 -> 0
A16: Percentage of screen recorded for voice interactions | B16: ='Deployment input'!B28 -> 20%
A17: Average voice recording duration | B17: ='Deployment input'!B15 -> 240
A18: Average ACW | B18: ='Deployment input'!B30 -> 0
A19: Average screen recording duration (s) | B19: =SUM(B17:B18) -> 240
A20: Average raw screen file size (KB) | B20: =B19*VLOOKUP('Deployment input'!B38,A2:D8,3,FALSE)/60 -> 3540
A21: Average muxed screen file size (KB) | B21: =B19*B12/60 -> 4020
A22: Video retention period (days) | B22: ='Deployment input'!B40 -> 90
A23: Video recording duration during busy hour (s) | B23: =(B13*B16*B19) -> 0
A24: Video recording uploaded per day (MB) | B24: =B15*B19*B11/1024/8*B16 -> 0 | C24: =CONCATENATE(CEILING(B24/1024, 1), " GB") -> 0 GB
A25: Total storage per day - muxed with audio | B25: =B15*B19/60*B12/1024*B16 -> 0 | C25: =CONCATENATE(CEILING(B25/1024, 1), " GB") -> 0 GB
A27: Screen Recording for Non-Voice
A28: Recording size KB/minute | B28: =VLOOKUP('Deployment input'!B38,A2:D8,3,FALSE) -> 885
A29: Number of agents | B29: ='Deployment input'!B33 -> 0
A30: Average duration per day per agent (hours) | B30: ='Deployment input'!B34 -> 0
A31: Video size per agent per day (MB) | B31: =B30*60*B28/1024 -> 0
A32: Video recording duration during busy hour (s) | B32: =B29*3600 -> 0
A33: Video recording per day (MB) | B33: =B31*B29 -> 0 | C33: =CONCATENATE(CEILING(B33/1024, 1), " GB") -> 0 GB
A35: Screen Recording
A36: Retention period | B36: ='Deployment input'!B40 -> 90
A37: Total recording uploaded per day (GB) | B37: =(B24+B33)/1024 -> 0
A38: Total storage per day (GB) | B38: =(B25+B33)/1024 -> 0
A39: Total storage required for retention (GB) | B39: =B38*B36 -> 0 | C39: =CONCATENATE(CEILING(B39/1024, 1), " TB") -> 0 TB
A42: Network Bandwidth Requirement
A43: Upload window | B43: ='Deployment input'!B39 -> 0
A44: Busy hour total screen recording duration(s) | B44: =B23+B32 -> 0
A45: Busy hour total bandwidth (Mbps) | B45: =B44*B11/1024/3600 -> 0
A46: Screen recording client to RWS (Mbps) | B46: =IF(B43=0,B45,B37*1024*8/(B43*3600)) -> 0
A47: RWS to WebDAV | B47: =B46 -> 0

Sheet MCP
A1: Keywords
A2: CPU Model: Xeon Ivy Bridge family, 2.4 GHz, or better
A3: Operating System | B3: Encryption? | C3: GIR or GIR+GIA? | D3: Recording Format
A4: Windows 2008 R2 | B4: No encryption | C4: GIR | D4: 16kbps mp3 (stereo)
A5: RHEL 6 | B5: Encryption enabled | C5: GIR+GIA | D5: 8kbps mp3 (mono)
A7: Port Density Factors | B7: Baseline | C7: IVR Recording Baseline | D7: Encryption | E7: mp3+wav | F7: 8kbps mp3 mono
A8: Windows 2008 R2 | B8: 43.75 | C8: 220 | D8: 87.50% | E8: 60% | F8: 128.57%
A9: RHEL 6 | B9: 37.5 | C9: 220 | D9: 100% | E9: 60% | F9: 200%
A11: Disk IOPS | B11: c | C11: k
A12: Windows 2008 R2 | B12: 7 | C12: 0.17
A13: RHEL 6 | B13: 7 | C13: 0.2
A16: Input Parameters
A17: Encryption | B17: =IF('Deployment input'!E26=MCP!B4,100%,IF('Deployment input'!E28=MCP!A4,MCP!D8,MCP!D9)) -> 88%
A18: mp3+wav | B18: =IF('Deployment input'!E27=MCP!C4,100%,IF('Deployment input'!E28=MCP!A4,MCP!E8,MCP!E9)) -> 100%
A19: recording format | B19: =IF('Deployment input'!E25=MCP!D4,100%,IF('Deployment input'!E28=MCP!A4,F8,F9)) -> 100%
A20: Agent -like recordings
A21: Baseline | B21: =IF('Deployment input'!E28 = A4, B8,B9) -> 43.75
A22: Derived density | B22: =B21*B17*B18*B19 -> 38.3
A23: Concurrent agent-like recordings | B23: ='Deployment input'!B8+'Deployment input'!E12 -> 0
A24: core per CPU | B24: =IF('Deployment input'!E29>8,0,'Deployment input'!E29) -> 8
A25: Ports per server | B25: =CEILING(B22*B24,1) -> 307
A26: Servers needed (no HA) | B26: =CEILING(B23/B25,1) -> 0
A27: Servers needed (HA) | B27: =CEILING(B26/10,1)+B26 -> 0
A28: Disk IOPS per server | B28: =IF('Deployment input'!E28=MCP!A4,B12+MCP!B25*MCP!C12*IF('Deployment input'!E27=MCP!C4,1,2),B13+B25*C13*IF('Deployment input'!E27=C4,1,2)) -> 59.19
A29: G711 bandwidth for bridging (Mbps) | B29: =B25*4*64/1024 -> 76.75
A30: VXML application-level control IVR recordings
A31: IVR Recording Baseline | B31: =IF('Deployment input'!E28 = A4, C8,C9) -> 220
A32: Derived density | B32: =B31*B17*B18*B19 -> 192.5
A33: Concurrent VXML application-level controlled recordings | B33: ='Deployment input'!E13 -> 0
A34: core per CPU | B34: =IF('Deployment input'!E29>8,0,'Deployment input'!E29) -> 8
A35: Ports per server | B35: =CEILING(B32*B34,1) -> 1540
A36: Additional MCP servers for IVR recordings needed | B36: =CEILING(B33/B35,1) -> 0
A37: Total MCP servers needed | B37: =B36+'Deployment input'!E14 -> 0
A38: Additional Disk IOPS per server | B38: =IF('Deployment input'!E28=MCP!A4,B12+MCP!B35*MCP!C12*IF('Deployment input'!E27=MCP!C4,1,2),B13+B35*C13*IF('Deployment input'!E27=C4,1,2))*IF(B37=0,1,B36/B37) -> 268.8
A39: Additional G711 bandwidth for bridging (Mbps) | B39: =B35*4*64/1024*IF(B37=0,1,B36/B37) -> 385

Sheet ICON
A1: Configurations | B1: Configuration 1
A2: VM instances | B2: 1
A3: Core speed (Ghz) | B3: 2.4
A4: Total cores | B4: 4
A5: Total RAM | B5: 8
A6: Disk
A7: IOPS
A8: Host OS | B8: ESX
A9: Guest OS | B9: Ubuntu
A12: ICON DB (SQL Server)
A13: AHT | B13: CAPS | C13: CPU per core % | D13: IO Read KB/sec | E13: IO Write KB/sec | F13: Mem (MB) | G13: CPU/CAPS | H13: IO read /CAPS | I13: IO write /CAPS
A14: 200 | B14: 1 | C14: 6.2 | D14: 1.2 | E14: 63 | F14: 187 | G14: =C14/B14 -> 6.20 | H14: =D14/$B14 -> 1.2 | I14: 63.0
A15: 100 | B15: 2 | C15: 13 | D15: 2.6 | E15: 112 | F15: 185 | G15: =C15/B15 -> 6.50 | H15: 1.3 | I15: 56.0
A16: 67 | B16: 3 | C16: 15.6 | D16: 3.3 | E16: 193 | F16: 185 | G16: =C16/B16 -> 5.20 | H16: 1.1 | I16: 64.3
A18: average CPU/CAPS | B18: =AVERAGE(G14:G16) -> 5.97
A19: memory usage | B19: =F16 -> 185.00
A20: average IO read KB/sec per CAPS | B20: =AVERAGE(H14:H16) -> 1.20
A21: averge IO write KB/sec per CAPS | B21: =AVERAGE(I14:I16) -> 61.11
A23: ICON
A24: AHT | B24: CAPS | C24: CPU per core % | D24: Mem (MB) | E24: CPU/CAPS
A25: 200 | B25: 1 | C25: 0.75 | D25: 53 | E25: =C25/B25 -> 0.750
A26: 100 | B26: 2 | C26: 1.25 | D26: 53 | E26: =C26/B26 -> 0.625
A27: 67 | B27: 3 | C27: 1.75 | D27: 53 | E27: =C27/B27 -> 0.583
D28: Average CPU/CAPS | E28: =AVERAGE(E25:E27) -> 0.653
A31: Input parameters
A32: CAPS | B32: ='Deployment input'!B21 -> 0.00
B34: CPU | C34: Memory
A35: ICON estimated usage | B35: =$B$32*$E$28/100 -> 0.00%

Sheet RP
A1: Response time for RWS (s) | B1: 0.7
A2: Response time for Interaction Receiver (s) | B2: 0.3
A3: RP internal processing time + ICON (s) | B3: 0.5
A4: Total RP processing time (s) | B4: =SUM(B1:B3) -> 1.5
A5: CAPS per RP instance | B5: =1/B4 -> 0.6666666667
A6: IOPS per CAPS | B6: 60
A7: Memory per instance (>5000 agents) | B7: 230
A8: Memory per instance (<5000 agents) | B8: 50.19
A9: Average CPU per instance (>5000 agents) | B9: 30%
A10: Average CPU per instance (<5000 agents) | B10: 24%
A12: Input Parameters
A13: Number of agents | B13: ='Deployment input'!B5 -> 0
A14: CAPS | B14: ='Deployment input'!B21 -> 0.00
B18: CPU per instance | C18: Memory (MB) per instance | D18: IOPS per CAPS | E18: Number of instances (no HA)
A19: RP estimated usage (total) | B19: =IF(B13>5000,B9,B10) -> 24.00% | C19: =IF(B13>5000,B7,B8) -> 50.19 | D19: =B14*B6 -> 0.00 | E19: =CEILING(B14/B5,1) -> 0

Sheet Voice Processor
A1: Keywords
A2: Classic Recording Processor | B2: Docker Voice Processor
A4: Constants
A5: % CPU usage per CAP | B5: 2.40%
A6: Memory usage per CAP (MB) | B6: 50
A7: Limit for CAP per Voice Processor instance | B7: 30
A9: Input Parameters
A10: Using Voice Processor? | B10: =IF('Deployment input'!B47 = B2,1,0) -> 0
A11: CAPS | B11: ='Deployment input'!B21 -> 0.00
B14: CPU per instance | C14: Memory (MB) per instance | D14: Number of instances (no HA)
A15: Voice Processor estimated usage (total) | B15: =B11*B5/MAX(1,D15) -> 0.00% | C15: =B11*B6/MAX(1,D15) -> 0 | D15: =CEILING(B11/B7,1) -> 0

Sheet Muxer
A1: CPU Model: Xeon Ivy Bridge family, 2.0 GHz, or better
A2: Constants
A3: Max peak CAPS | B3: 5
A4: Max peak data throughput (kbps) | B4: 80000
A6: Input Parameters
A7: Peak CAPS | B7: ='Deployment input'!B29 -> 0.00
A8: Peak Data Throughput (kbps) | B8: ='Screen recording storage'!B21*8*B7 -> 0
B10: CPU per instance | C10: Memory (MB) per instance | D10: IOPS | E10: Disk Space (GB) | F10: Network bandwidth (Mbps) | G10: Number of instances (no HA)
A11: Muxer estimated usage (total) | B11: 150.00% | C11: =2048 -> 2048 | D11: 200 | E11: 120 | F11: =B8/1024/MAX(1,G11) -> 0 | G11: =ROUNDUP(MAX(B7/B3,B8/B4),0) -> 0

Sheet RCS
A1: CPU Model: Xeon Ivy Bridge family, 2.0 GHz, or better
A2: Average CPU per CAPS | B2: 10%
A3: Average CPU per kbps (voice) | B3: 0.0013440%
A4: Average CPU per kbps (screen) | B4: 0.0006523%
A6: Playback Input Parameters
A7: Total concurrent playback users (voice) | B7: =SUM('Deployment input'!$B$24:$B$25,'Deployment input'!$B$41) -> 100
A8: Playback bitrate (kbps) | B8: ='Voice recording storage'!B5 -> 16
A9: Total concurrent playback users (screen) | B9: ='Deployment input'!B41 -> 50
A10: Playback bitrate (kbps) | B10: ='Screen recording storage'!B11 -> 118
A11: Total Playback bitrate | B11: =B7*B8+B9*B10 -> 7500
A12: Muxer (retrieve) CAPS | B12: =RWS!B43 -> 0.00
A13: Average audio files size (KB) | B13: ='Voice recording storage'!B10 -> 480
A14: Average screen file size (KB) | B14: ='Screen recording storage'!B21 -> 4020
A16: Output
A17: RCS estimated usage | B17: CPU | C17: Memory | D17: Bandwidth (Mbps)
A18: Voice playback usage | B18: =B7*B8*B3 -> 2% | D18: =B7*B8/1024 -> 1.5625
A19: Screen playback usage | B19: =B9*B10*B4 -> 4% | D19: =B9*B10/1024 -> 5.76171875
A20: Muxer usage | B20: =(B12*B13*8*B3)+(B12*B14*8*B4) -> 0% | D20: =(B12*B13*8+B12*B14*8)/1024 -> 0
B21: =SUM(B18:B20) -> 6.00% | C21: 600 | D21: =SUM(D18:D20) -> 7.32421875

Sheet RWS
A1: RWS
A2: CPU Model: Xeon Haswell family, 2.4 GHz, or better
A3: Configurations | B3: Profile 1
A4: VM instances | B4: 3
A5: Total cores | B5: =IF((B26+B32)>20,8,4) -> 4
A6: Total RAM (GB) | B6: 8
A7: Disk
A8: IOPS
A9: Host OS | B9: ESX
A10: Guest OS | B10: RHEL6
A14: Average CPU/CAPS (voice upload) | B14: 6.70%
A15: Average CPU/CAPS (screen upload) | B15: 28.09%
A16: Average CPU/CAPS (voice playback) | B16: 11.53%
A17: Average CPU/CAPS (screen playback) | B17: 15.76%
A18: Memory base for voice (MB) | B18: 2480
A19: Memory increase per voice CAPS (MB) | B19: 0.249
A20: Memory base for screen (MB) | B20: 1750
A21: Memory increase per screen CAPS (MB) | B21: 443
A22: IOPS
A25: Voice Input Parameters
A26: Voice CAPS | B26: ='Deployment input'!B21 -> 0.00
A27: Number of recordings per day | B27: ='Deployment input'!B12+'Deployment input'!E11 -> 0
A28: Voice retention period (days) | B28: ='Deployment input'!B22 -> 360
A29: Amount of records | B29: =B27*B28 -> 0
A31: Screen Input Parameters
A32: Screen CAPS | B32: ='Deployment input'!B29 -> 0.00 | C32: times this by 2
A33: Number of recordings per day | B33: ='Deployment input'!B12*'Deployment input'!B28 -> 0
A34: Retention period (days) | B34: ='Deployment input'!B40 -> 90
A35: Amount of records | B35: =B33*B34 -> 0
A37: Playback Input Parameters
A38: Voice playback duration (+ACW) | B38: =('Deployment input'!$B$15+'Deployment input'!$B$30) -> 240
A39: IVR playback duration | B39: ='Deployment input'!E9 -> 0.00
A40: Total concurrent voice playback users | B40: ='Deployment input'!B24+'Deployment input'!B25 -> 50
A41: Total concurrent screen playback users | B41: ='Deployment input'!B41 -> 50
A42: Average playback duration (s) | B42: =AVERAGEIF(B38:B39,">0") -> 240
A43: Muxer (Retrieve) CAPS | B43: =IF(B32=0,0,B32) -> 0.00
A44: Muxer (update) CAPS | B44: =IF(B32=0,0,B32) -> 0.00
A45: Voice playback CAPS | B45: =B40/B38 -> 0.21
A46: Screen playback CAPS | B46: =B41/B38 -> 0.21
B48: Memory (MB) | C48: IOPS
A49: RWS 3 node cluster | B49: =B18+2*((B26*B19)+(B32*B21)) -> 2480 | C49: Refer to cassandra
B50: Average CPU/CAPS | C50: CAPS | D50: CPU
A51: Voice usage | B51: =B14 -> 6.70% | C51: =B26 -> 0.00 | D51: =B51*C51 -> 0.00%
A52: Screen usage | B52: =B15 -> 28.09% | C52: =B32 -> 0.00 | D52: 0.00%
A53: Muxer (retrieve) usage | B53: =B16+B17 -> 27.29% | C53: =B43 -> 0.00 | D53: 0.00%
A54: Muxer (update) usage | B54: =B14 -> 6.70% | C54: =B44 -> 0.00 | D54: 0.00%
A55: Voice Playback usage | B55: =B16 -> 11.53% | C55: =B45 -> 0.21 | D55: 2.40%
A56: Screen Playback usage | B56: =B17 -> 15.76% | C56: =B46 -> 0.21 | D56: 3.28%
A57: Total usage | D57: =SUM(D51:D55) -> 2.40%

Sheet Elasticsearch
A1: Elasticsearch used by RWS
A2: CPU Model: Xeon Haswell family, 2.3 GHz, or better
A3: Configurations | B3: Profile 1
A4: VM instances | B4: 3
A5: Cores per VM | B5: =IF((B11+B18)>20,8,4) -> 4
A6: RAM (GB) per VM | B6: =IF((B11+B18)>20,32,16) -> 16
A7: Configured heap size (GB) | B7: =IF((B11+B18)>20,16,8) -> 8
A10: Voice Input Parameters
A11: Voice CAPS | B11: ='Deployment input'!B21 -> 0.00
A12: Number of attached data per call | B12: ='Deployment input'!B23 -> 40
A13: Number of recordings per day | B13: ='Deployment input'!B12+'Deployment input'!E11 -> 0
A14: Retention period (days) | B14: ='Deployment input'!B22 -> 360
A15: Amount of records | B15: =B13*B14 -> 0
A17: Screen Input Parameters
A18: Screen CAPS | B18: ='Deployment input'!B29 -> 0.00
A19: Number of recordings per day | B19: ='Deployment input'!B12*'Deployment input'!B28 -> 0
A20: Retention period (days) | B20: ='Deployment input'!B40 -> 90
A21: Amount of records | B21: =B19*B20 -> 0
B23: Disk space (GB)
A24: Voice usage | B24: =((55*B12*B15)/1024/1024/1024) -> 0
A25: Screen usage | B25: =(800*B21)/1024/1024/1024 -> 0
A26: Total usage (all indexes, no replication) | B26: =SUM(B24:B25) -> 0
A27: Total usage (per instance, allowing for replication) | B27: =2*B26/B4 -> 0

Sheet Cassandra
A1: CPU Model: Xeon Haswell family, 2.4 GHz, or better
A2: Configurations | B2: Configuration 1 | G2: Important Note: Estimated size here represents the size of the expected unique records, after removal of duplicated records in SSTables as a result of the compaction process executed by Cassandra, based on its configuration made by the customer. The default setting for Cassandra compaction is usually set to maintaining up to 4 SSTables before starting compaction. Cassandra administrators can change the compaction strategy. So, depending on your setup and the number of updates that Cassandra will receive in relation to the existing records – you must estimate the actual required amount of storage, based on the expected quantity and speed of additional SSTables creation, and the time at which the compactions will be executed. With the default setting for example, you must multiply the received value by 5 to be on the safe side, assuming 4 SSTables to be kept until the time of compaction and the new SSTable creation, which would be consolidating unique records with the most recently updated values. Therefore, it is your responsibility to use the expected Cassandra DB size, and adjust/multiply the value estimated here, according to your Cassandra setup. Also supporting and maintaining the 3rd party Cassandra system in a healthy state is the responsibility of the administrators at the customer's site. More info: When does the SSTable compaction occur? As data continues to be written and updated, more immutable SSTable files are created. So the same record, with different versions of the data, may be found across the different SSTable files on disk. The system understands which of these records are the most current, and only responds to query requests with the latest version. However, without some way to remove the outdated records, the SSTable count and data volume stored would get very high, and the disks would fill up. Compaction is a process that writes a whole new file using data found across the extant SSTables. This process deduplicates obsolete records and only writes the most current changes for the same key on different SSTables, writing a new SSTable file. Deleted rows (indicated by a marker called a tombstone) or entire deleted columns are also cleaned up, and the process creates a new index for the compacted SSTable file. You can find more information about Cassandra here: https://cassandra.apache.org.
A3: VM instances
A4: Total cores
A5: Total RAM
A6: Disk
A7: IOPS
A8: Host OS
A9: Guest OS
A11: Disk growth per 100K records (MB) | B11: 50
A12: CPU | B12: 2.28
A13: memory base | B13: 2076
A14: memory per CAPS | B14: 0
A15: IOPS base for voice | B15: 2
A16: IOPS per CAPS (voice) | B16: 3.36
A17: IOPS base for screen | B17: 6
A18: IOPS per CAPS (screen) | B18: 1.11
A20: CAPS (voice) | B20: ='Deployment input'!B21 -> 0.00
A21: CAPS (screen) | B21: ='Deployment input'!B29 -> 0.00
A22: CAPS (muxer) updates same as screen | B22: =B21 -> 0.00
A23: Total CAPS | B23: =SUM(B20:B22) -> 0.00
A24: Voice records during retention | B24: =RWS!B29 -> 0
A25: Screen records durin retention | B25: =RWS!B35 -> 0
B28: CPU | C28: Memory | D28: IOPS | E28: Disk space (GB)
A29: Cassandra estimated usage | B29: =B23*B12/100 -> 0.00% | C29: =B13 +B14*B23 -> 2076 | D29: =(B15+(B20+B22)*B16)+(B17+B22*B18) -> 8.00 | E29: =SUM(B24:B25)/100000*B11/1024 -> 0

Sheet WebDAV
A1: CPU | B1: 18.26
A2: Data written per write operation (KBytes) | B2: 4
A3: Data read per read operation (KBytes) | B3: 100
A5: Total CAPS (voice+screen) | B5: ='Deployment input'!B21+'Deployment input'!B29 -> 0.00
A6: Data rate for uploading voice recording (Kbytes/sec) | B6: ='Deployment input'!B21*'Voice recording storage'!B10 -> 0.00
A7: Data rate for screen recording upload (Kbytes/sec) | B7: ='Deployment input'!B29*'Screen recording storage'!B20 -> 0.00
A8: Data rate for Muxer to read recordings (Kbytes/sec) | B8: ='Deployment input'!B29*'Screen recording storage'!B21 -> 0.00
A9: Data rate for Muxer to write recordings (Kbytes/sec) | B9: ='Deployment input'!B29*'Screen recording storage'!B21 -> 0.00
A10: Data rate for voice playback (Kbytes/sec) | B10: =('Deployment input'!B24+'Deployment input'!B25)*'Voice recording storage'!B5/8 -> 100.00
A11: Data rate for screen playback (Kbytes/sec) | B11: ='Deployment input'!B41*'Screen recording storage'!B12/60 -> 837.50
A12: Total IOPS for read operations | B12: =(B8+B10+B11)/B3 -> 9.38
A13: Total IOPS for write operations | B13: =(B6+B7+B9)/B2 -> 0.00
B15: CPU | C15: IOPS
A16: Apache httpd WebDAV estimated usage | B16: =B5*B1/100 -> 0.00% | C16: =B13 -> 0.00

Sheet SpeechMiner
A1: SpeechMiner DB initial size (GB) | B1: 10
A2: Size increase per 100K records (GB) | B2: 0.1
A3: Number of SpeechMiner Elasticsearch shards per Data Node | B3: 16
A4: Disk space used per recording (Bytes) | B4: =300+(80*'Deployment input'!B23) -> 3500
A5: Number of recordings stored in SpeechMiner Elasticsearch per shard | B5: 30000000
A7: Number of recordings per day | B7: ='Deployment input'!B12+'Deployment input'!E11 -> 0
A8: Voice retention period (days) | B8: ='Deployment input'!B22 -> 360
A9: Amount of records | B9: =B7*B8 -> 0
A10: Concurrent recorded agents | B10: ='Deployment input'!B8 -> 0
A11: Concurrent SpeechMiner users for playback | B11: ='Deployment input'!B24 -> 50
A12: CAPS | B12: ='Deployment input'!B21 -> 0
A13: Number of copies of data stored in Elasticsearch | B13: ='Deployment input'!B44+1 -> 2
A14: Total number of recording copies stored | B14: =B9*B13 -> 0
A16: SpeechMiner storage sizing | B16: DB ( Data) | C16: DB ( log) | D16: DB ( Temp)
A17: Disk space required (GB) | B17: =B9/100000*B2+B1 -> 10.00 | C17: =0.5*B17 -> 5.00 | D17: =0.25*B17 -> 2.50
A19: SpeechMiner Server specification | B19: CPU | C19: RAM
A20: Uplatform | B20: Dual 8-Core Xeon Silver 4110 2.1GHz | C20: 16GB
A21: Interaction Receiver | B21: Dual 8-Core Xeon Silver 4110 2.1GHz | C21: 16GB
A22: Web | B22: Dual 8-Core Xeon Silver 4110 2.1GHz | C22: 16GB
A23: DB (small) | B23: Dual 8-Core Xeon Silver 4110 2.1GHz | C23: 16GB
A24: DB (medium) | B24: Dual 8-Core Xeon Silver 4110 2.1GHz | C24: 32GB
A25: DB (large) | B25: Dual 8-Core Xeon E5-4655 v4 2.5 GHz | C25: 64GB
A26: DB (xlarge) | B26: Dual 16-Core Xeon E5-4660 v4 2.2 GHz | C26: 128GB
A27: Indexer | B27: 4-Core Xeon Silver 4112 2.6 GHz | C27: 8GB
A28: SpeechMiner Elasticsearch Master node | B28: 4-Core Xeon Silver 4112 2.6 GHz | C28: 8GB
A29: SpeechMiner Elasticsearch Data node | B29: Dual 8-Core Xeon Silver 4110 2.1 GHz | C29: 64GB
A31: SpeechMiner deployment size | B31: Concurrent recorded agents
A32: small | B32: 260
A33: medium | B33: 625
A34: large | B34: 3000
A35: xlarge | B35: 7000
A37: Number of Concurrent SpeechMiner users supported per server | B37: 120
A38: Number of CAPS per IR | B38: 20
A40: Recommended DB Server size | B40: CPU | C40: RAM
A41: =IF($B$10>$B$34,"xlarge",IF($B$10>$B$33,"large",IF($B$10>$B$32,"medium","small"))) -> small | B41: =IF($B$10>$B$34,B$26,IF($B$10>$B$33,B$25,IF($B$10>$B$32,B$24,B$23))) -> Dual 8-Core Xeon Silver 4110 2.1GHz | C41: =IF($B$10>$B$34,C$26,IF($B$10>$B$33,C$25,IF($B$10>$B$32,C$24,C$23))) -> 16GB
A43: Recommended Web Server Quantity without High Availability | B43: =ROUNDUP(B11/B37,0) -> 1
A44: Recommended IR Quantity without High Availability | B44: =ROUNDUP(B12/B38,0) -> 0
A45: Recommended number of Elasticsearch Master Nodes with High Availability | B45: 3
A46: Recommended number of Elasticsearch Data Nodes | B46: =ROUNDUP(MAX(2, B9/(B5*B3)),0) -> 2
A47: Recommended number of Indexer machines | B47: 2
A48: Average disk usage per Elasticsearch Data Node (Gbytes) | B48: =B14*B4/B46/1000000000 -> 0 | C48: NOTE: Elasticsearch Data nodes must use SSD storage
